fUSD/lending_fUSD_20250503
["ID","MTS","AMOUNT","RATE_DAILY","PERIOD"]
[359730130,1746283833656,-450.0,0.00019895,2]
[359730131,1746283833666,-684.2,0.00019895,2]
[359730132,1746283833676,-332.10671907,0.00019895,2]
[359730133,1746283833687,-133.60328093,0.00019895,2]
[359730134,1746283833697,-316.44827613,0.00019895,2]
[359730135,1746283838067,-451.36915919,0.0001962,2]
[359730136,1746283838079,-33.10958603,0.0001962,2]
[359730137,1746283838090,-450.0,0.0001962,2]
[359730138,1746283838100,-1907.5,0.0001962,2]
[359730139,1746283838110,-450.0,0.00019621,2]
[359730140,1746283838122,-450.0,0.00019621,2]
[359730141,1746283838131,-450.0,0.00019894,2]
[359730142,1746283838141,-1335.00172387,0.00019895,2]
[359730143,1746283838150,-450.0,0.00019895,2]
[359730144,1746283838160,-450.0,0.00019895,2]
[359730145,1746283838169,-500.27,0.00019895,2]
[359730146,1746283838178,-772.73,0.00019895,2]
[359730147,1746283838187,-450.0,0.00019895,2]
[359730148,1746283838196,-620.3467044,0.00019895,2]
[359730149,1746283838206,-150.0,0.00019896,2]
[359730150,1746283838215,-620.3467044,0.00019897,2]
[359730151,1746283838224,-150.0,0.00019897,2]
[359730152,1746283838233,-620.3467044,0.00019898,2]
[359730153,1746283838242,-166.7551116,0.00019899,2]
[359730154,1746283838251,-12500.0,0.000199,2]
[359730155,1746283838260,-161.16470066,0.000199,2]
[359730156,1746283838269,-166.75511159,0.000199,2]
[359730157,1746283838278,-620.3467044,0.000199,2]
[359730158,1746283838287,-150.0,0.00019902,2]
[359730159,1746283838296,-150.0,0.00019914,2]
[359730160,1746283838307,-150.0,0.00019917,2]
[359730161,1746283838317,-150.0,0.00019927,2]
[359730162,1746283838326,-150.0,0.00019931,2]
[359730163,1746283838337,-150.0,0.00019932,2]
[359730164,1746283838353,-272.20168444,0.00019945,2]
[359730165,1746283838362,-150.0,0.00019953,2]
[359730166,1746283838372,-150.0,0.00019961,2]
[359730167,1746283838381,-150.0,0.00019965,2]
[359730168,1746283838390,-450.0,0.00019972,2]
[359730169,1746283838399,-625.42,0.00019972,2]
[359730170,1746283838408,-573.97,0.00019972,2]
[359730171,1746283838417,-450.0,0.00019972,2]
[359730172,1746283838427,-450.0,0.00019972,2]
[359730173,1746283838437,-475.65,0.00019972,2]
[359730174,1746283838447,-501.02155493,0.00019973,2]
[359730175,1746283838456,-500.0,0.00019973,2]
[359730176,1746283838465,-500.0,0.00019973,2]
[359730177,1746283838474,-500.0,0.00019973,2]
[359730178,1746283838483,-500.0,0.00019973,2]
[359730179,1746283838493,-500.84285818,0.00019973,2]
[359730180,1746283838502,-500.0,0.00019973,2]
[359730181,1746283838512,-500.0,0.00019973,2]
[359730182,1746283838521,-500.0,0.00019973,2]
[359730183,1746283838530,-500.0,0.00019973,2]
[359730184,1746283838539,-500.0,0.00019973,2]
[359730185,1746283838548,-150.0,0.00019978,2]
[359730186,1746283838557,-29200.63573446,0.00019986,2]
[359730187,1746283838567,-80437.3398333,0.00019986,2]
[359730188,1746283838576,-9587.940346,0.00019986,2]
[359730189,1746283838585,-150.0,0.00019994,2]
[359730190,1746283838596,-400.0,0.00019994,2]
[359730191,1746283838605,-500.0,0.00019994,2]
[359730192,1746283838614,-500.0,0.00019994,2]
[359730193,1746283838623,-500.0,0.00019994,2]
[359730194,1746283838632,-546.99292739,0.00019994,2]
[359730195,1746283838642,-327705.51022103,0.00019995,2]
[359730196,1746283838651,-300.0,0.00019999,2]
[359730197,1746283838660,-450.0,0.00019999,2]
[359730198,1746283838670,-450.0,0.00019999,2]
[359730199,1746283838679,-450.0,0.00019999,2]
[359730200,1746283838688,-520.31,0.00019999,2]
[359730201,1746283838697,-450.0,0.00019999,2]
[359730202,1746283838706,-450.0,0.00019999,2]
[359730203,1746283838715,-450.0,0.00019999,2]
[359730204,1746283838724,-777.24,0.00019999,2]
[359730205,1746283838733,-450.0,0.00019999,2]
[359730206,1746283838742,-468.70797676,0.00019999,2]
[359730207,1746283838751,-450.0,0.00019999,2]
[359730208,1746283838760,-1652.8,0.00019999,2]
[359730209,1746283838770,-450.0,0.00019999,2]
[359730210,1746283838779,-450.0,0.00019999,2]
[359730211,1746283838788,-512.91345261,0.00019999,2]
[359730212,1746283838798,-3868.99,0.00019999,2]
[359730213,1746283838807,-450.0,0.00019999,2]
[359730214,1746283838817,-450.0,0.00019999,2]
[359730215,1746283838827,-450.0,0.00019999,2]
[359730216,1746283838836,-450.0,0.00019999,2]
[359730217,1746283838846,-450.0,0.00019999,2]
[359730218,1746283838856,-1161.0,0.00019999,2]
[359730219,1746283838865,-482.17675895,0.0002,2]
[359730220,1746283838874,-649805.54488108,0.0002,2]
[359730222,1746283839929,-549.90052138,0.00019894,2]
[359730223,1746283840103,-450.0,0.0001962,2]
[359730224,1746283840112,-1357.59947862,0.00019894,2]
[359730225,1746283840122,-450.0,0.00019894,2]
[359730226,1746283840131,-263.01652138,0.00019999,2]
[359730227,1746283841278,-187.08699503,0.00019999,2]
[359730228,1746283841288,-758.96776512,0.0002,2]
[359730242,1746283844131,-825.83307834,0.0002,2]
[359730243,1746283844142,-1456288.61497292,0.0002,2]
[359730244,1746283844151,-3442462.75288437,0.0002,2]
[359730245,1746283844171,-836.0894133,0.0002,2]
[359730246,1746283844764,-257.92840356,0.0002,2]
[359730247,1746283844945,-187.11466007,0.0001952,2]
[359730248,1746283844955,-454.11846088,0.0001962,2]
[359730249,1746283844965,-450.0,0.00019621,2]
[359730250,1746283844974,-36690.47203353,0.0002,2]
[359730261,1746283851256,-450.0,0.00019621,2]
[359730262,1746283851266,-329.73995308,0.00019999,2]
[359730263,1746283851606,-120.26004692,0.00019999,2]
[359730264,1746283851615,-450.0,0.00019999,2]
[359730265,1746283851625,-731.74328207,0.0002,2]
[359730266,1746283851666,-642.20676173,0.0002,2]
[359730267,1746283851801,-11968.96900003,0.0002,2]
[359730268,1746283851814,-1140.79999,0.0002,2]
[359730269,1746283851826,-1587.03359657,0.0002,2]
[359730270,1746283851842,-380.49834359,0.00019895,2]
[359730271,1746283851851,-6637.50165641,0.0002,2]
[359730272,1746283853302,-698.37733079,0.0002,2]
[359730273,1746283853334,-678.46196361,0.0002,2]
[359730274,1746283857425,-297.57317504,0.0002,2]
[359730275,1746283857583,-5052.02242718,0.0002,2]
[359730276,1746283858083,1443.29,0.00019156,2]
[359730277,1746283858744,1002.37253846,0.00019456,2]
[359730278,1746283865199,-300.0,0.00019619,2]
[359730279,1746283865221,-450.0,0.0001962,2]
[359730280,1746283865243,-578.26,0.0001962,2]
[359730281,1746283865265,-914.57,0.0001962,2]
[359730282,1746283865285,-450.0,0.0001962,2]
[359730283,1746283865306,-450.0,0.0001962,2]
[359730284,1746283865328,-803.79,0.0001962,2]
[359730285,1746283865354,-965.11,0.0001962,2]
[359730286,1746283865375,-450.0,0.0001962,2]
[359730287,1746283865396,-1796.41,0.00019621,2]
[359730288,1746283865419,-150.0,0.00019641,2]
[359730289,1746283865441,-150.0,0.0001968,2]
[359730290,1746283865464,-150.0,0.00019737,2]
[359730291,1746283865487,-150.0,0.00019755,2]
[359730292,1746283865509,-150.0,0.00019774,2]
[359730293,1746283865533,-150.0,0.00019779,2]
[359730294,1746283865553,-17068.0336,0.00019794,2]
[359730295,1746283865573,-150.0,0.00019841,2]
[359730296,1746283865600,-150.0,0.00019847,2]
[359730297,1746283865623,-150.0,0.00019848,2]
[359730298,1746283865647,-150.0,0.00019875,2]
[359730299,1746283865669,-384.31533776,0.00019894,2]
[359730300,1746283865691,-578.26,0.00019894,2]
[359730301,1746283865713,-914.57,0.00019894,2]
[359730302,1746283865734,-450.0,0.00019894,2]
[359730303,1746283865755,-450.0,0.00019894,2]
[359730304,1746283865777,-803.79,0.00019894,2]
[359730305,1746283865799,-965.11,0.00019894,2]
[359730306,1746283865821,-1796.41,0.00019895,2]
[359730307,1746283865844,-450.0,0.00019972,2]
[359730308,1746283865866,-450.0,0.00019999,2]
[359730309,1746283865887,-450.0,0.00019999,2]
[359730310,1746283865908,-400.0,0.00019999,2]
[359730311,1746283865930,-400.0,0.00019999,2]
[359730312,1746283865951,-416.91615072,0.00019999,2]
[359730313,1746283865972,-450.0,0.00019999,2]
[359730314,1746283865993,-450.0,0.00019999,2]
[359730315,1746283866015,-450.0,0.00019999,2]
[359730316,1746283866037,-450.0,0.00019999,2]
[359730317,1746283866059,-1051.0,0.00019999,2]
[359730318,1746283866082,-321323.56870615,0.0002,2]
[359730319,1746283866105,-219.0,0.0002,2]
[359730320,1746283866128,-219.0,0.0002,2]
[359730321,1746283866149,-219.0,0.0002,2]
[359730322,1746283866171,-254.68016569,0.0002,2]
[359730323,1746283866192,-180.7290065,0.0002,2]
[359730324,1746283866214,-223.18277489,0.0002,2]
[359730325,1746283866235,-150.0,0.0002,2]
[359730326,1746283866257,-876.69242175,0.0002,2]
[359730327,1746283866280,-335847.60183654,0.0002,2]
[359730328,1746283873692,2414.31,0.00019082,2]
[359730329,1746283880094,38463.376875,0.0003,30]
[359730330,1746283954425,485.83,0.00018983,2]
[359730331,1746284042161,150.0,0.00018948,2]
[359730332,1746284052489,23900.0,0.00018933,2]
[359730333,1746284064372,-200.07146465,0.0001952,2]
[359730334,1746284070098,-41.69653535,0.0001952,2]
[359730335,1746284112425,298.02,0.0001884,2]
[359730336,1746284115029,-200.071464,0.00019518,2]
[359730337,1746284115052,-78.33283307,0.0001952,2]
[359730338,1746284118943,-77.89766752,0.0001952,2]
[359730339,1746284179004,320.100833,0.00019476,2]
[359730340,1746284201661,1000.0,0.00018843,2]
[359730341,1746284218260,151.1,0.00018845,2]
[359730342,1746284218484,151.1,0.00018852,2]
[359730343,1746284218693,151.1,0.00018859,2]
[359730344,1746284218900,151.1,0.00018867,2]
[359730345,1746284219128,151.1,0.00018874,2]
[359730346,1746284219358,151.1,0.00018881,2]
[359730347,1746284219563,151.1,0.00018888,2]
[359730348,1746284219885,151.1,0.00018896,2]
[359730349,1746284220079,151.1,0.00018903,2]
[359730350,1746284220478,151.1,0.0001891,2]
[359730351,1746284220906,151.1,0.00018918,2]
[359730352,1746284221123,151.1,0.00018925,2]
[359730353,1746284221356,151.1,0.00018932,2]
[359730354,1746284221530,151.1,0.00018939,2]
[359730355,1746284230812,250.0,0.0001884,2]
[359730356,1746284247319,-1026.007894,0.00032877,60]
[359730357,1746284247369,-2900.0,0.0003411,60]
[359730358,1746284247418,-1829.3637929,0.00035,120]
[359730359,1746284247465,-2900.0,0.00035206,60]
[359730360,1746284247512,-328.92,0.000353,120]
[359730361,1746284247562,-1000.0,0.00035616,60]
[359730362,1746284247610,-1000.0,0.00035616,60]
[359730363,1746284247664,-1000.0,0.00035616,60]
[359730364,1746284247712,-1000.0,0.00035616,60]
[359730365,1746284247761,-1000.0,0.00035616,60]
[359730366,1746284247807,-225.46090366,0.00035616,60]
[359730367,1746284247855,-2101.305632,0.00035616,90]
[359730368,1746284247904,-500.0,0.00036,120]
[359730369,1746284247950,-8371.26730746,0.00036,60]
[359730370,1746284247999,-2900.0,0.00036302,60]
[359730371,1746284248051,-1277.050319,0.00037098,110]
[359730372,1746284248101,-1277.050319,0.00037198,111]
[359730373,1746284248149,-321.02705843,0.000372,120]
[359730374,1746284248197,-321.02705842,0.000372,120]
[359730375,1746284248248,-321.02705842,0.000372,120]
[359730376,1746284248294,-321.02705842,0.000372,120]
[359730377,1746284248342,-321.02705842,0.000372,120]
[359730378,1746284248391,-1277.050319,0.00037298,112]
[359730379,1746284248435,-643.58,0.0003736,120]
[359730380,1746284248483,-2900.0,0.00037398,60]
[359730381,1746284248534,-1277.050319,0.00037398,113]
[359730382,1746284248588,-1277.050319,0.00037498,114]
[359730383,1746284248642,-1277.050319,0.00037598,115]
[359730384,1746284248697,-1277.050319,0.00037698,116]
[359730385,1746284248754,-1277.050319,0.00037798,117]
[359730386,1746284248810,-1277.050319,0.00037898,118]
[359730387,1746284248862,-643.58,0.000379,120]
[359730388,1746284248917,-1277.050319,0.00037998,119]
[359730389,1746284248970,-438.52091149,0.00038,120]
[359730390,1746284249024,-700.0,0.00038,120]
[359730391,1746284249080,-1277.050319,0.00038098,110]
[359730392,1746284249132,-1277.050319,0.00038198,111]
[359730393,1746284249183,-1277.050319,0.00038298,112]
[359730394,1746284249237,-1277.050319,0.00038398,113]
[359730395,1746284249285,-1189.23895638,0.00038494,60]
[359730396,1746284249335,-1277.050319,0.00038498,114]
[359730397,1746284249393,-1277.050319,0.00038598,115]
[359730398,1746284249442,-160.0,0.000386,57]
[359730399,1746284249493,-1277.050319,0.00038698,116]
[359730400,1746284249544,-1277.050319,0.00038798,117]
[359730401,1746284249594,-1277.050319,0.00038898,118]
[359730402,1746284249644,-1277.050319,0.00038998,119]
[359730403,1746284249696,-1277.050319,0.00039098,120]
[359730404,1746284249750,-1277.050319,0.00039198,110]
[359730405,1746284249801,-1277.050319,0.00039298,111]
[359730406,1746284249852,-1277.050319,0.00039398,112]
[359730407,1746284249906,-1277.050319,0.00039498,113]
[359730408,1746284249974,-1277.050319,0.00039598,114]
[359730409,1746284250030,-160.0,0.000396,60]
[359730410,1746284250084,-2333.050319,0.00039698,115]
[359730411,1746284250135,-1586.41692924,0.000397,120]
[359730412,1746284250191,-2333.050319,0.00039798,116]
[359730413,1746284250248,-2333.050319,0.00039898,117]
[359730414,1746284250299,-441.58605307,0.00039986,60]
[359730415,1746284250354,-2333.050319,0.00039998,118]
[359730416,1746284250408,-193.64475558,0.0004,120]
[359730417,1746284250459,-700.0,0.0004,120]
[359730418,1746284250511,-370.7441748,0.0004,120]
[359730419,1746284250561,-598.17,0.0004,120]
[359730420,1746284250611,-2000.0,0.0004,120]
[359730421,1746284250663,-662343.62125296,0.0004,60]
[359730422,1746284250714,-2160.11481374,0.0004,120]
[359730423,1746284250765,-2333.050319,0.00040098,119]
[359730424,1746284250816,-2333.050319,0.00040198,119]
[359730425,1746284250868,-2333.050319,0.00040298,110]
[359730426,1746284250916,-2333.050319,0.00040398,111]
[359730427,1746284250966,-2333.050319,0.00040498,112]
[359730428,1746284251019,-2333.050319,0.00040598,113]
[359730429,1746284251070,-160.0,0.000406,63]
[359730430,1746284251118,-2333.050319,0.00040698,114]
[359730431,1746284251168,-2333.050319,0.00040798,115]
[359730432,1746284251217,-2333.050319,0.00040898,116]
[359730433,1746284251267,-2333.050319,0.00040998,117]
[359730434,1746284251316,-500.0,0.00041,120]
[359730435,1746284251364,-887.0,0.00041,90]
[359730436,1746284251416,-1196.34,0.00041095,120]
[359730437,1746284251466,-1196.34,0.00041095,120]
[359730438,1746284251515,-1196.34,0.00041095,120]
[359730439,1746284251563,-1196.34,0.00041095,120]
[359730440,1746284251612,-1196.34,0.00041095,120]
[359730441,1746284251665,-1196.34,0.00041095,120]
[359730442,1746284251718,-1196.34,0.00041095,120]
[359730443,1746284251765,-1196.34,0.00041095,120]
[359730444,1746284251816,-1196.34,0.00041095,120]
[359730445,1746284251862,-1196.34,0.00041095,120]
[359730446,1746284251911,-1196.34,0.00041095,120]
[359730447,1746284251960,-1196.34,0.00041095,120]
[359730448,1746284252008,-1196.34,0.00041095,120]
[359730449,1746284252057,-1196.34,0.00041095,120]
[359730450,1746284252105,-1196.34,0.00041095,120]
[359730451,1746284252153,-1196.34,0.00041095,120]
[359730452,1746284252206,-1196.34,0.00041095,120]
[359730453,1746284252262,-1196.34,0.00041095,120]
[359730454,1746284252309,-1196.34,0.00041095,120]
[359730455,1746284252357,-1196.34,0.00041095,120]
[359730456,1746284252404,-1196.34,0.00041095,120]
[359730457,1746284252450,-1196.34,0.00041095,120]
[359730458,1746284252497,-1196.34,0.00041095,120]
[359730459,1746284252544,-1196.47,0.00041095,120]
[359730460,1746284252596,-2333.050319,0.00041098,118]
[359730461,1746284252647,-562.93522217,0.000411,120]
[359730462,1746284252695,-562.93522217,0.000411,120]
[359730463,1746284252747,-562.93522217,0.000411,120]
[359730464,1746284252798,-562.93522217,0.000411,120]
[359730465,1746284252846,-562.93522217,0.000411,120]
[359730466,1746284252896,-562.93522217,0.000411,120]
[359730467,1746284252945,-562.93522217,0.000411,120]
[359730468,1746284252993,-562.93522217,0.000411,120]
[359730469,1746284253043,-562.93522217,0.000411,120]
[359730470,1746284253092,-562.93522217,0.000411,120]
[359730471,1746284253143,-562.93522217,0.000411,120]
[359730472,1746284253192,-562.93522217,0.000411,120]
[359730473,1746284253241,-562.93522217,0.000411,120]
[359730474,1746284253291,-562.93522217,0.000411,120]
[359730475,1746284253353,-562.93522217,0.000411,120]
[359730476,1746284253414,-562.93522217,0.000411,120]
[359730477,1746284253466,-562.93522217,0.000411,120]
[359730478,1746284253520,-562.93522217,0.000411,120]
[359730479,1746284253876,-562.93522217,0.000411,120]
[359730480,1746284253930,-562.93,0.000411,120]
[359730481,1746284253985,-1313.51551839,0.000411,120]
[359730482,1746284254043,-1313.51551839,0.000411,120]
[359730483,1746284254098,-1313.51551839,0.000411,120]
[359730484,1746284254152,-1313.51551839,0.000411,120]
[359730485,1746284254203,-1313.51551839,0.000411,120]
[359730486,1746284254255,-1313.51551839,0.000411,120]
[359730487,1746284254305,-1313.51551839,0.000411,120]
[359730488,1746284254356,-1313.51551839,0.000411,120]
[359730489,1746284254406,-1313.51551839,0.000411,120]
[359730490,1746284254458,-1313.51551839,0.000411,120]
[359730491,1746284254509,-1313.51551839,0.000411,120]
[359730492,1746284254560,-1313.51551839,0.000411,120]
[359730493,1746284254611,-1313.51551839,0.000411,120]
[359730494,1746284254663,-1313.51551839,0.000411,120]
[359730495,1746284254712,-1313.51551839,0.000411,120]
[359730496,1746284254768,-1313.51551839,0.000411,120]
[359730497,1746284254820,-1313.51551839,0.000411,120]
[359730498,1746284254870,-1313.51551839,0.000411,120]
[359730499,1746284254922,-1313.51551839,0.000411,120]
[359730500,1746284254971,-1313.51,0.000411,120]
[359730501,1746284255021,-162.02403864,0.000411,120]
[359730502,1746284255070,-162.02403864,0.000411,120]
[359730503,1746284255119,-162.02403864,0.000411,120]
[359730504,1746284255169,-162.02403864,0.000411,120]
[359730505,1746284255215,-162.02403864,0.000411,120]
[359730506,1746284255262,-162.02403864,0.000411,120]
[359730507,1746284255308,-162.02,0.000411,120]
[359730508,1746284255359,-155.67015477,0.000411,120]
[359730509,1746284255405,-155.67015477,0.000411,120]
[359730510,1746284255453,-155.67015477,0.000411,120]
[359730511,1746284255500,-155.67015477,0.000411,120]
[359730512,1746284255545,-155.67015477,0.000411,120]
[359730513,1746284255592,-155.67015477,0.000411,120]
[359730514,1746284255641,-155.67015477,0.000411,120]
[359730515,1746284255690,-155.67015477,0.000411,120]
[359730516,1746284255745,-155.67015477,0.000411,120]
[359730517,1746284255792,-155.67015477,0.000411,120]
[359730518,1746284255840,-155.67015477,0.000411,120]
[359730519,1746284255892,-155.67015477,0.000411,120]
[359730520,1746284255943,-155.67015477,0.000411,120]
[359730521,1746284255992,-155.67015477,0.000411,120]
[359730522,1746284256046,-155.67015477,0.000411,120]
[359730523,1746284256096,-155.67015477,0.000411,120]
[359730524,1746284256146,-155.67,0.000411,120]
[359730525,1746284256201,-171.64285289,0.000411,120]
[359730526,1746284256253,-171.64285289,0.000411,120]
[359730527,1746284256303,-171.64285289,0.000411,120]
[359730528,1746284256353,-171.64285289,0.000411,120]
[359730529,1746284256406,-171.64,0.000411,120]
[359730530,1746284256458,-154.03845772,0.000411,120]
[359730531,1746284256508,-154.03845772,0.000411,120]
[359730532,1746284256558,-154.03845772,0.000411,120]
[359730533,1746284256607,-154.03845772,0.000411,120]
[359730534,1746284256658,-154.03845772,0.000411,120]
[359730535,1746284256706,-154.03845772,0.000411,120]
[359730536,1746284256755,-154.03845772,0.000411,120]
[359730537,1746284256804,-154.03845772,0.000411,120]
[359730538,1746284256853,-154.03845772,0.000411,120]
[359730539,1746284256903,-154.03845772,0.000411,120]
[359730540,1746284256952,-154.03845772,0.000411,120]
[359730541,1746284257001,-154.03845772,0.000411,120]
[359730542,1746284257060,-154.03,0.000411,120]
[359730543,1746284257113,-2333.050319,0.00041198,119]
[359730544,1746284257165,-2333.050319,0.00041298,110]
[359730545,1746284257214,-4182.7877803,0.000413,120]
[359730546,1746284257266,-2333.050319,0.00041398,111]
[359730547,1746284257317,-2333.050319,0.00041498,112]
[359730548,1746284257367,-5056.94,0.000415,120]
[359730549,1746284257419,-2333.050319,0.00041598,113]
[359730550,1746284257472,-160.0,0.000416,66]
[359730551,1746284257523,-2333.050319,0.00041698,114]
[359730552,1746284257576,-2333.050319,0.00041798,115]
[359730553,1746284257627,-1699.798,0.000418,90]
[359730554,1746284257679,-345.52,0.00041813,120]
[359730555,1746284257729,-10750.65806396,0.00041869,60]
[359730556,1746284257778,-401.19543561,0.00041869,60]
[359730557,1746284257829,-2333.050319,0.00041898,116]
[359730558,1746284257882,-245.0,0.0004197,120]
[359730559,1746284257931,-150.5,0.0004197,120]
[359730560,1746284257979,-285.0,0.0004197,120]
[359730561,1746284258030,-245.0,0.0004197,120]
[359730562,1746284258080,-285.0,0.0004197,120]
[359730563,1746284258131,-245.0,0.0004198,120]
[359730564,1746284258181,-285.0,0.0004198,120]
[359730565,1746284258230,-150.5,0.0004198,120]
[359730566,1746284258290,-245.0,0.0004198,120]
[359730567,1746284258338,-285.0,0.0004198,120]
[359730568,1746284258383,-285.0,0.0004198,120]
[359730569,1746284258430,-245.0,0.0004198,120]
[359730570,1746284258489,-293.45,0.0004198,120]
[359730571,1746284258537,-247.21,0.0004198,120]
[359730572,1746284258585,-245.0,0.0004199,120]
[359730573,1746284258636,-285.0,0.0004199,120]
[359730574,1746284258683,-150.5,0.0004199,120]
[359730575,1746284258731,-245.0,0.0004199,120]
[359730576,1746284258780,-285.0,0.0004199,120]
[359730577,1746284258829,-285.0,0.0004199,120]
[359730578,1746284258881,-245.0,0.0004199,120]
[359730579,1746284258931,-285.0,0.0004199,120]
[359730580,1746284258983,-245.0,0.0004199,120]
[359730581,1746284259035,-2333.050319,0.00041998,117]
[359730582,1746284259085,-510.436649,0.00041999,120]
[359730583,1746284259135,-2000.0,0.00041999,120]
[359730584,1746284259185,-507.974252,0.00041999,120]
[359730585,1746284259232,-178.927853,0.00041999,120]
[359730586,1746284259282,-41656.21,0.00042,60]
[359730587,1746284259329,-358.24799564,0.00042,120]
[359730588,1746284259374,-472.38941081,0.00042,120]
[359730589,1746284259427,-800.0,0.00042,120]
[359730590,1746284259486,-1000.0,0.00042,120]
[359730591,1746284259539,-2333.050319,0.00042098,118]
[359730592,1746284259595,-2333.050319,0.00042198,119]
[359730593,1746284259651,-163.121,0.00042222,120]
[359730594,1746284259708,-163.122,0.00042222,120]
[359730595,1746284259763,-163.122,0.00042222,120]
[359730596,1746284259816,-163.121,0.00042222,120]
[359730597,1746284259873,-773.050318,0.00042298,120]
[359730598,1746284259928,-1003.0,0.000423,55]
[359730599,1746284259987,-773.050318,0.00042398,110]
[359730600,1746284260046,-2301.811,0.00042425,64]
[359730601,1746284260103,-210.11,0.00042425,64]
[359730602,1746284260156,-1003.0,0.0004245,56]
[359730603,1746284260211,-773.050318,0.00042498,111]
[359730604,1746284260265,-2853.03,0.000425,60]
[359730605,1746284260318,-5000.0,0.000425,120]
[359730606,1746284260376,-773.050318,0.00042598,112]
[359730607,1746284260436,-160.0,0.000426,69]
[359730608,1746284260490,-1031.300756,0.000426,58]
[359730609,1746284260542,-773.050318,0.00042698,113]
[359730610,1746284260600,-773.050318,0.00042798,114]
[359730611,1746284260656,-2413.16677209,0.000428,90]
[359730612,1746284260712,-773.050318,0.00042898,115]
[359730613,1746284260768,-225.07620378,0.00043,120]
[359730614,1746284260826,-1045.0,0.00043,120]
[359730615,1746284260878,-208.71,0.00043,120]
[359730616,1746284260930,-163.76,0.00043,120]
[359730617,1746284260981,-40363.47237754,0.00043,120]
[359730618,1746284261035,-1153.5,0.00043,120]
[359730619,1746284261091,-803.98,0.00043,120]
[359730620,1746284261144,-150.0,0.00043008,120]
[359730621,1746284261194,-643.58,0.0004308,120]
[359730622,1746284261258,-773.050318,0.00043098,117]
[359730623,1746284261310,-345.52,0.00043183,120]
[359730624,1746284261364,-773.050318,0.00043198,118]
[359730625,1746284261422,-150.0,0.00043248,120]
[359730626,1746284261481,-773.050318,0.00043298,119]
[359730627,1746284261536,-773.050318,0.00043498,120]
[359730628,1746284261588,-2000.0,0.00043499,120]
[359730629,1746284261643,-1632.18,0.000435,120]
[359730630,1746284261694,-3620.87424085,0.00043553,120]
[359730631,1746284261745,-160.0,0.000436,72]
[359730632,1746284261797,-1881.3,0.000436,120]
[359730633,1746284261848,-1806.28,0.000436,120]
[359730634,1746284261898,-232.17,0.000436,120]
[359730635,1746284261953,-243.58,0.000436,120]
[359730636,1746284262003,-523.92004911,0.000437,120]
[359730637,1746284262056,-2723.0,0.000438,120]
[359730638,1746284262108,-150.0,0.000438,120]
[359730639,1746284262160,-150.0,0.000438,120]
[359730640,1746284262210,-3288.998,0.000438,110]
[359730641,1746284262267,-1842.38,0.00043835,120]
[359730642,1746284262326,-150.0,0.00043984,120]
[359730643,1746284262374,-171.34607386,0.00044,120]
[359730644,1746284262423,-1292.39228036,0.00044,120]
[359730645,1746284262473,-2138.38,0.00044,60]
[359730646,1746284262524,-606.81958469,0.00044,120]
[359730647,1746284262574,-160.19789005,0.00044,60]
[359730648,1746284262624,-1660.0,0.00044,120]
[359730649,1746284262675,-1289.7443871,0.00044,120]
[359730650,1746284262728,-800.0,0.00044,120]
[359730651,1746284262776,-270.58674983,0.00044,120]
[359730652,1746284262826,-281.88130243,0.00044,120]
[359730653,1746284262878,-150.0,0.00044157,120]